Cogmind - Beta 16.1 @@@ ROGUE MODE // 2026.03.05 @ 16:37:47 Player: FL-IST Result: Escaped! Performance ------------- Evolutions (9) 4500 Regions Visited (22) 4400 Robots Destroyed (413) 2065 Value Destroyed (21547) 21547 Prototype IDs (49) 980 Alien Tech Used (0) 0 Bonus (11309) 11309 TOTAL SCORE: 44801 Bonus ------- High Alert Combat Kills 5020 Follower Combat Kills 742 Entered Garrisons 800 Used RIF Installer 1000 Entered DSFs 500 Aligned with FarCom 300 Win 3000 Friendly Fire -53 Cogmind --------- Core Integrity 745/1600 Matter 60/300 Energy 96/100 System Corruption 13% Temperature Cool (13) Movement Core (50) Location To Epsilon Eridani Parts ------- > --- POWER (2) -------- (None) > --- PROPULSION (6) --- (None) > --- UTILITY (11) ----- (None) > --- WEAPON (6) ------- (None) > --- INVENTORY (5) ---- Smartbomb Launcher Peak State ------------ > --- POWER ------------ Reinforced Fission Core Reinforced Quantum Reactor > --- PROPULSION ------- Centrium Heavy Treads Centrium Heavy Treads Centrium Heavy Treads > --- UTILITY ---------- Advanced Cryofiber Web Coolant Network High-capacity Storage Unit Advanced Targeting Computer Advanced Target Analyzer Core Analyzer Advanced Weapon Cycler Advanced Phase Shifter Advanced Powered Armor Graphene Brace > --- WEAPON ----------- Railgun Railgun Multirail Multirail Compact Mass Driver Compact Mass Driver > --- INVENTORY -------- Biometal Medium Treads Enhanced Armored Heavy Treads Improved Weapon Cycler Improved Heavy Armor Plating Experimental System Shield Relay Coupler [NC] Relay Coupler [NC] Long-range Tractor Beam Railgun Railgun Multirail Compact Mass Driver Compact Mass Driver Smartbomb Launcher Improved Remote Datajack Nanosword Nanosword [Rating: 213] Favorites ----------- Power Reinforced Quantum Reactor Engine Light Angular Momentum Engine Power Core Nuclear Core Reactor Reinforced Quantum Reactor Propulsion Light Treads Treads Light Treads Leg Carbon-fiber Leg Wheel Armored Wheel Flight Unit Improved Flight Unit Utility High-capacity Storage Unit Device Advanced Heat Sink Storage High-capacity Storage Unit Processor Core Analyzer Hackware Relay Coupler [Sentry] Protection Improved Medium Armor Plating Weapon Hypervelocity Railgun Energy Gun Plasma Rifle Energy Cannon Enhanced Nova Cannon Ballistic Gun Hypervelocity Railgun Ballistic Cannon Compact Mass Driver Launcher Smartbomb Launcher Special Weapon Remote Datajack Impact Weapon Powered Hammer Slashing Weapon Nanosword Build | -11 -10 -10 -10 -9 -8 -8 -8 -7 -6 -5 -4 -4 -4 -4 -3 -3 -3 -3 -2 -1 -1 -1 ------- Run | Yrd Mat Min Exi Min Mat Gar Mat Fac Fac Fac Fac Gar Fac Arm Res Gar Res DSF Res Acc Gar Acc Slots Evolved 18 | . . . . . 4 . . 2 2 2 2 . . . 2 . . . 2 2 . . Power 1 | . . . . . . . . . . . . . . . 1 . . . . . . . Propulsion 4 | . . . . . 1 . . 1 . . . . . . . . . . 2 . . . Utility 9 | . . . . . 1 . . 1 2 2 . . . . 1 . . . . 2 . . Weapon 4 | . . . . . 2 . . . . . 2 . . . . . . . . . . . Parts Attached 223 | 7 . . 1 1 35 13 7 7 5 22 2 17 16 25 12 8 . 8 10 . 6 21 Power 12 | 1 . . . . 3 1 . 1 . 1 . . . 2 1 1 . . . . . 1 Engine 3 | 1 . . . . . 1 . 1 . . . . . . . . . . . . . . Core 4 | . . . . . 3 . . . . . . . . . . 1 . . . . . . Reactor 5 | . . . . . . . . . . 1 . . . 2 1 . . . . . . 1 Propulsion 47 | 2 . . . . 13 5 4 2 . 4 . 2 1 4 . 1 . 1 3 . . 5 Treads 39 | 2 . . . . 10 5 2 . . 3 . 2 1 4 . 1 . 1 3 . . 5 Leg 2 | . . . . . 2 . . . . . . . . . . . . . . . . . Wheel 4 | . . . . . . . 2 1 . 1 . . . . . . . . . . . . Hover . | . . . . . . . . . . . . . . . . . . . . . . . Flight 2 | . . . . . 1 . . 1 . . . . . . . . . . . . . . Utility 81 | 2 . . 1 1 7 3 . 2 3 9 1 8 7 9 8 1 . 5 4 . 2 8 Device 38 | 1 . . . . 2 1 . 2 1 5 . 3 1 3 7 . . 2 4 . 1 5 Storage 4 | 1 . . 1 1 1 . . . . . . . . . . . . . . . . . Processor 15 | . . . . . 1 . . . 2 1 1 1 3 3 . . . . . . 1 2 Hackware 8 | . . . . . 1 . . . . 2 . 2 2 . 1 . . . . . . . Protection 16 | . . . . . 2 2 . . . 1 . 2 1 3 . 1 . 3 . . . 1 Artifact . | . . . . . . . . . . . . . . . . . . . . . . . Weapon 83 | 2 . . . . 12 4 3 2 2 8 1 7 8 10 3 5 . 2 3 . 4 7 Energy Gun 7 | . . . . . 3 1 . 1 . . . . . . . 2 . . . . . . Energy Cannon 1 | . . . . . . . . . . . . . . . . . . . . . . 1 Ballistic Gun 61 | 2 . . . . 8 1 2 1 2 7 1 6 7 10 2 3 . 2 1 . 4 2 Ballistic Cannon 5 | . . . . . . . . . . 1 . . . . . . . . 2 . . 2 Launcher 2 | . . . . . . . . . . . . 1 . . 1 . . . . . . . Special Weapon 2 | . . . . . . . 1 . . . . . 1 . . . . . . . . . Impact Weapon 3 | . . . . . 1 2 . . . . . . . . . . . . . . . . Slashing Weapon 2 | . . . . . . . . . . . . . . . . . . . . . . 2 Piercing Weapon . | . . . . . . . . . . . . . . . . . . . . . . . Special Melee Weapon . | . . . . . . . . . . . . . . . . . . . . . . . Unidentified Prototypes 15 | . . . . . 2 . . 2 . 1 . . 1 2 2 . . . 1 . 1 3 Corrupted Parts 2 | . . . . . . . . . . 2 . . . . . . . . . . . . System Corruption 12 | . . . . . . . . . . 12 . . . . . . . . . . . . Parts Lost 93 | . . . . . 12 1 . . . 9 . 6 4 8 5 10 . 5 1 . . 32 Power 7 | . . . . . 2 . . . . 1 . . . . . 1 . . . . . 3 Propulsion 11 | . . . . . 2 . . . . 2 . 1 1 . . 1 . 1 . . . 3 Utility 41 | . . . . . 3 . . . . 3 . 5 3 7 1 2 . 2 . . . 15 Weapon 34 | . . . . . 5 1 . . . 3 . . . 1 4 6 . 2 1 . . 11 Highest Loss Streak 23 | . . . . . 5 1 . . . 6 . 2 3 5 2 9 . 3 1 . . 23 To Critical Strikes . | . . . . . . . . . . . . . . . . . . . . . . . Average Backups 15 | 3 5 5 5 8 14 18 18 17 17 17 18 17 17 16 13 12 14 13 15 15 15 15 Power . | . 1 1 1 1 1 . . 1 2 2 3 2 2 1 . . . . . . . . Propulsion 2 | 1 2 2 2 2 6 6 3 2 2 1 2 1 1 2 . 1 2 1 . . . 1 Utility 6 | . 1 1 1 2 4 6 10 9 9 9 9 9 7 3 3 6 8 8 7 7 7 6 Weapon 4 | . 1 1 1 2 2 3 4 3 3 3 3 3 5 8 8 4 3 3 6 7 7 6 Tool/Special . | . . . . . . . . . . . . . . . . . . . . . . . Unused Backups 27 | . . . . 2 4 5 . . . 1 . 2 1 5 . 1 . . . . . 6 Power 2 | . . . . 1 . . . . . . . . . 1 . . . . . . . . Propulsion 12 | . . . . . 1 2 . . . 1 . . 1 3 . . . . . . . 4 Utility 9 | . . . . . 1 2 . . . . . 2 . 1 . 1 . . . . . 2 Weapon 3 | . . . . 1 2 . . . . . . . . . . . . . . . . . Tool/Special 1 | . . . . . . 1 . . . . . . . . . . . . . . . . Average Slot Usage (%) 90 | . 100 100 100 100 92 99 99 99 99 91 93 94 90 87 83 77 80 77 82 80 79 76 Engine 2 | . 14 14 14 14 . . 9 7 6 3 . . . . . . . . . . . . Core 2 | . . . . . 7 8 . . . . . . . . . . 4 4 4 4 4 2 Reactor 2 | . . . . . . . . . . 1 5 5 5 4 9 6 4 4 4 4 4 4 Treads 17 | . 28 28 28 28 25 27 25 15 13 13 14 14 12 10 9 8 9 8 13 12 12 11 Wheel 1 | . . . . . . . 1 15 13 6 5 2 . . . . . . . . . . Device 12 | . 14 14 14 14 8 9 9 14 13 12 15 14 12 9 15 14 9 7 12 16 18 16 Storage 6 | . 14 14 14 14 9 9 9 7 6 5 5 5 5 5 4 4 4 4 4 4 4 3 Processor 6 | . . . . . . . . . 12 14 10 9 12 15 14 14 14 14 8 8 8 11 Hackware 1 | . . . . . . . . . . 1 5 5 4 5 . . . . . . . . Protection 5 | . . . . . 7 9 9 7 6 4 5 4 4 4 2 . 4 5 8 8 8 4 Energy Gun 1 | . . . . . 4 1 . . . . . . . . . 1 9 9 6 4 1 . Ballistic Gun 26 | . 28 28 28 28 28 32 35 30 26 22 26 27 30 29 26 22 19 16 16 19 19 15 Peak Build Rating 213 | 7 7 7 9 10 29 34 36 45 55 82 85 94 106 139 160 160 138 138 167 174 200 213 Average Rating 82 | 5 7 7 8 9 21 26 33 41 53 65 84 88 94 123 147 141 138 123 155 170 187 192 On Entrance 79 | . 7 7 7 9 10 27 33 36 43 55 82 85 92 105 132 160 138 138 126 167 170 200 Avg Prop Armor Cover (%) 11 | . . . . . 11 . 9 9 10 12 15 13 . . . . . . . . . . Naked Turns 41 | . . . . . . . . . . . . . . . . . . . . . . 41 Heaviest Build 167 | 14 14 14 19 49 63 68 69 74 79 96 98 110 111 128 154 146 146 167 158 158 165 165 Greatest Support 240 | 40 40 40 40 40 60 60 60 24 24 47 16 125 140 155 150 150 145 145 215 205 205 240 Greatest Overweight (x) 6 | . . . . 1 3 1 6 3 3 6 6 6 1 . 1 1 1 1 . . . 4 Average Overweight (x) . | . . . . . . 1 2 2 2 4 5 2 . . . . 1 . . . . . Largest Inventory Capacity 20 | 8 8 8 10 20 20 20 20 20 20 20 20 20 20 20 20 20 20 20 20 20 20 20 Average Capacity 19 | 6 8 8 8 12 20 20 20 20 20 20 20 20 20 20 20 20 20 20 20 20 20 19 Most Carried 20 | 5 5 5 8 12 20 20 20 20 19 20 20 20 20 20 20 20 20 20 19 18 20 20 Average Carried 16 | 3 5 5 6 9 15 19 19 18 18 18 19 18 18 18 15 16 20 18 18 18 18 17 Final Capacity 20 | 8 8 8 10 20 20 20 20 20 20 20 20 20 20 20 20 20 20 20 20 20 20 5 Final Carried 20 | 5 5 5 8 11 19 20 19 20 19 20 20 17 20 14 18 20 20 17 19 18 18 2 Class Distribution -------------------- 34% | Scavenger-Executioner 20% | Scavenger-Skirmisher 12% | Scavenger-Tank 10% | Executioner 9% | Mutant 7% | Scavenger-Gunner Dominant Class ---------------- Mutant | -10/Materials Mutant | -10/Mines Mutant | -10/Exiles Mutant | -9/Mines Scavenger-Skirmisher | -8/Materials Scavenger-Tank | -8/Garrison Scavenger-Skirmisher | -8/Materials Scavenger-Tank | -7/Factory Scavenger-Gunner | -6/Factory Scavenger-Gunner | -5/Factory Scavenger-Executioner | -4/Factory Scavenger-Executioner | -4/Garrison Scavenger-Executioner | -4/Factory Executioner | -4/Armory Executioner | -3/Research Bothacker-Executioner | -3/Garrison Scavenger-Executioner | -3/Research Scavenger-Executioner | -3/DSF Scavenger-Executioner | -2/Research Scavenger-Executioner | -1/Access Scavenger-Executioner | -1/Garrison Scavenger-Executioner | -1/Access Resources | -11 -10 -10 -10 -9 -8 -8 -8 -7 -6 -5 -4 -4 -4 -4 -3 -3 -3 -3 -2 -1 -1 -1 ----------- Run | Yrd Mat Min Exi Min Mat Gar Mat Fac Fac Fac Fac Gar Fac Arm Res Gar Res DSF Res Acc Gar Acc Matter Collected 17757 | 227 . 30 . 169 1277 1001 342 180 169 1061 . 1616 1330 2284 2531 676 . 432 412 . 980 3040 Remotely 5951 | . . . . . . . . . . 254 . 351 318 1144 1095 595 . 187 . . 649 1358 Salvage Created 24735 | 134 . 11 . 162 2430 1102 435 . 39 1590 . 1712 1511 2979 3973 1184 . 866 608 . 1585 4414 Parts 1234 | 10 . 3 . 18 124 64 34 . . 83 . 70 68 159 194 56 . 32 35 . 68 216 Haulers Intercepted 17 | . . . . . 5 . 1 . . 2 . . 2 . 2 . . . 1 . . 4 Recyclers Shooed 9 | . . . . . . . . . . 2 . . 1 . 5 . . . 1 . . . Parts Field Recycled . | . . . . . . . . . . . . . . . . . . . . . . . Retrieved Matter . | . . . . . . . . . . . . . . . . . . . . . . . Parts Self-Destructed . | . . . . . . . . . . . . . . . . . . . . . . . Prevented . | . . . . . . . . . . . . . . . . . . . . . . . Parts Restored . | . . . . . . . . . . . . . . . . . . . . . . . Kills | -11 -10 -10 -10 -9 -8 -8 -8 -7 -6 -5 -4 -4 -4 -4 -3 -3 -3 -3 -2 -1 -1 -1 ------- Run | Yrd Mat Min Exi Min Mat Gar Mat Fac Fac Fac Fac Gar Fac Arm Res Gar Res DSF Res Acc Gar Acc Combat Hostiles Destroyed 320 | . . 1 . 6 35 27 8 . . 18 . 24 10 45 35 18 . 13 5 . 23 52 Melee 1 | . . . . . . . . . . . . . . 1 . . . . . . . . Guns 301 | . . 1 . 6 35 27 8 . . 17 . 21 10 39 35 17 . 13 5 . 23 44 Cannons 8 | . . . . . . . . . . . . . . . . . . . . . . 8 AOE 10 | . . . . . . . . . . 1 . 3 . 5 . 1 . . . . . . Classes Destroyed 22 | 2 . 1 . 2 6 4 . . . 1 . 2 . 2 1 1 . . . . . . Worker 18 | . . . . 1 4 . . . . 3 . . 3 . 2 . . . . . . 5 Builder 10 | . . . . . 2 . 1 . . 2 . . . . 2 . . . . . . 3 Tunneler 7 | 4 . . . 1 . . . . . . . . . . . . . . 2 . . . Hauler 17 | . . . . . 5 . 1 . . 2 . . 2 . 2 . . . 1 . . 4 Recycler 17 | 1 . . . . 4 . . . . 2 . . 3 . 5 . . . . . . 2 Carrier 1 | . . . . . . . . . . . . . . . 1 . . . . . . . Operator 5 | . . . . . 2 . 1 . . . . . 1 . 1 . . . . . . . Watcher 15 | . . . . . 4 1 1 . 1 . . . . 3 2 . . . 2 . . 1 Swarmer 55 | . . 1 . 6 6 7 2 . . 2 . 3 . 10 3 3 . 4 . . 8 . Cutter 2 | . . . . . . . . . . . . . . . . 2 . . . . . . Saboteur 4 | . . . . . . . . . . 1 . . . 2 1 . . . . . . . Grunt 137 | . . . . . 21 9 3 . . 7 . 10 3 19 18 10 . 4 . . 11 22 Brawler 5 | . . . . . . 1 . . . 1 . 1 . 1 . 1 . . . . . . Duelist 6 | . . . . . . 1 1 . . . . . . . . . . . . . 1 3 Sentry 34 | . . . . . 8 5 2 . . . . 6 3 2 2 . . 1 3 . . 2 Demolisher 1 | . . . . . . . . . . . . . . 1 . . . . . . . . Specialist 12 | . . . . . . . . . . . . 3 . 3 2 1 . 3 . . . . Hunter 19 | . . . . . . 1 . . . 5 . 1 2 2 4 . . . . . 2 2 Programmer 37 | . . . . . . 3 . . . 2 . . 2 4 5 . . . 1 . . 20 Heavy 3 | . . . . . . . . . . . . . . 1 . . . 1 1 . . . Behemoth 7 | . . . . . . . . . . . . 1 1 . . 1 . . . . 1 3 Zionite 1 | . . . . 1 . . . . . . . . . . . . . . . . . . Best Kill Streak 14 | 5 . 1 . 3 6 5 6 . 1 13 . 6 3 9 10 14 . 7 2 . 7 11 Combat Bots Only 14 | . . 1 . 3 5 5 4 . . 8 . 6 3 9 7 14 . 7 1 . 7 10 Max Kills in Single Turn 4 | 1 . 1 . 1 2 2 2 . 1 2 . 3 2 4 3 2 . 1 1 . 2 3 Gunslinging 1 | . . . . . . 1 1 . . 1 . 1 . 1 1 . . . . . . 1 Exploded 3 | . . . . . . . . . . 1 . 3 . 3 . 1 . . . . . . Melee 1 | . . . . . . . . . . . . . . 1 . . . . . . . . Uniques/NPCs Destroyed . | . . . . . . . . . . . . . . . . . . . . . . . Combat | -11 -10 -10 -10 -9 -8 -8 -8 -7 -6 -5 -4 -4 -4 -4 -3 -3 -3 -3 -2 -1 -1 -1 -------- Run | Yrd Mat Min Exi Min Mat Gar Mat Fac Fac Fac Fac Gar Fac Arm Res Gar Res DSF Res Acc Gar Acc Hostile Shots Fired 1987 | . . 4 . 16 153 66 17 . 2 187 . 160 74 183 196 225 . 78 27 . 146 453 Missed 615 | . . . . 4 32 14 6 . 1 56 . 47 17 49 53 98 . 25 7 . 63 143 Hits 1372 | . . 4 . 12 121 52 11 . 1 131 . 113 57 134 143 127 . 53 20 . 83 310 Melee 17 | . . . . . . . . . . 4 . 2 . 4 . . . . . . . 7 Projectile 1355 | . . 4 . 12 121 52 11 . 1 127 . 111 57 130 143 127 . 53 20 . 83 303 AOE 6 | . . . . . . . . . . . . . . 4 . 2 . . . . . . Critical Strikes 71 | . . . . 1 12 4 . . . 6 . 2 4 7 8 4 . 4 . . 4 15 Actively Blocked 6 | . . . . . . . . . . . . . . . . . . . . . 4 2 Part Disruptions 5 | . . . . . . . . . . . . . . 3 . . . 1 . . . 1 Damage Taken 25491 | . . 29 . 152 1839 488 235 . 84 2058 . 1454 1173 3457 1786 2172 . 1544 629 . 1627 6764 Core 1991 | . . 10 . 30 261 4 33 . . 91 . 86 160 169 49 202 . 41 . . 96 759 Absorbed by Shields 1913 | . . . . . . 187 . . 62 287 . 420 181 8 667 44 . . . . 57 . Reduced by Siege Mode 917 | . . . . . . . . . . . . 5 24 291 55 109 . 37 29 . 72 295 Ignored by Resistances 24 | . . . . . . . . . . . . . . . . . . . . . . 24 Core Remaining (%) 80 | 100 . . . 84 . . 45 100 100 90 . . . 63 . . . 77 100 . . 46 Volleys Fired 788 | 14 . 2 . 18 144 57 16 3 7 55 1 69 48 74 66 26 . 25 19 . 33 111 Largest 6 | 2 . 2 . 2 4 4 4 4 4 4 5 6 6 6 6 6 . 6 6 . 6 6 Hottest 304 | 40 . 40 . 40 138 138 93 98 109 117 140 180 190 240 240 230 . 290 304 . 243 287 Shots Fired 3252 | 28 . 4 . 36 454 211 61 12 26 201 5 303 225 328 339 121 . 119 82 . 204 493 Gun 3033 | 28 . 4 . 36 454 211 60 12 26 198 5 289 214 322 339 119 . 119 72 . 203 322 Cannon 181 | . . . . . . . . . . . . . . . . . . . 10 . . 171 Launcher 7 | . . . . . . . . . . . . 1 . 3 . 2 . . . . 1 . Special 31 | . . . . . . . 1 . . 3 . 13 11 3 . . . . . . . . Kinetic 3075 | 28 . 4 . 36 401 209 60 12 26 198 5 289 214 322 339 119 . 71 61 . 196 485 Thermal 139 | . . . . . 53 2 . . . . . . . . . . . 48 21 . 7 8 Explosive 7 | . . . . . . . . . . . . 1 . 3 . 2 . . . . 1 . Electromagnetic . | . . . . . . . . . . . . . . . . . . . . . . . Robot Hit Streak 60 | 5 . 2 . 6 15 17 21 3 4 10 2 34 23 21 18 25 . 19 20 . 23 60 Robot Miss Streak 7 | 2 . 2 . 4 5 5 1 1 4 7 3 2 3 4 4 3 . 3 3 . 5 4 Penetration Max 3 | . . . . . . . . . . 1 . 2 1 1 3 1 . 2 1 . 2 2 Secondary Targets 58 | . . . . 2 3 5 3 . . 5 . 4 1 14 11 1 . 5 . . 3 1 Max Gunslinging Chain 2 | . . . . 1 1 1 1 . . 2 . 1 1 2 1 1 . 1 . . 1 1 Autonomous 117 | . . . . . . . . . . . . . . 2 . 25 . . . . 58 32 Shots Hit Robots 2133 | 16 . 2 . 19 294 129 42 5 13 110 2 231 132 216 196 90 . 94 50 . 159 333 Core Hits 1059 | 8 . 1 . 11 122 50 20 3 1 64 2 84 50 111 116 49 . 39 27 . 80 221 Critical Kills 90 | . . . . . . 2 . . . 3 . 2 1 23 41 3 . . . . 2 13 Critical Parts Destroyed 116 | 1 . . . . 4 . . . . 5 . 6 1 26 46 2 . . . . 4 21 Critical Strikes 229 | 1 . . . . 5 2 . . . 8 . 9 2 53 87 8 . 2 2 . 6 44 Burn 5 | . . . . . 1 . . . . . . . . . . . . 2 2 . . . Destroy 220 | 1 . . . . 4 2 . . . 8 . 9 2 53 87 8 . . . . 6 40 Blast 4 | . . . . . . . . . . . . . . . . . . . . . . 4 Melee Attacks 53 | . . . . . 4 28 2 . . . . 4 . . 2 2 . . . . . 11 Impact 42 | . . . . . 4 28 2 . . . . 4 . . 2 2 . . . . . . Slashing 11 | . . . . . . . . . . . . . . . . . . . . . . 11 Piercing . | . . . . . . . . . . . . . . . . . . . . . . . Sneak Attacks 4 | . . . . . 1 . . . . . . . . . . . . . . . . 3 Combat Hostiles . | . . . . . . . . . . . . . . . . . . . . . . . Follow-up Attacks . | . . . . . . . . . . . . . . . . . . . . . . . Damage Inflicted 45839 | 177 . 19 . 213 3786 2065 671 88 259 2474 37 4679 2864 3742 2318 2264 . 2167 1308 . 4555 12153 Guns 41129 | 177 . 19 . 213 3694 2065 671 81 226 2430 37 4512 2864 3331 2318 1944 . 2167 1214 . 4540 8626 Cannons 3197 | . . . . . . . . . . . . . . . . . . . 82 . . 3115 Explosions 913 | . . . . . . . . . . . . 167 . 411 . 320 . . . . 15 . Melee 413 | . . . . . 86 . . . . . . . . . . . . . . . . 327 Ramming 187 | . . . . . 6 . . 7 33 44 . . . . . . . . 12 . . 85 Kinetic 42495 | 177 . 19 . 213 2953 2065 671 81 226 2430 37 4512 2864 3331 2318 1944 . 1510 974 . 4429 11741 Thermal 1831 | . . . . . 741 . . . . . . . . . . . . 657 322 . 111 . Explosive 913 | . . . . . . . . . . . . 167 . 411 . 320 . . . . 15 . Electromagnetic . | . . . . . . . . . . . . . . . . . . . . . . . Impact 86 | . . . . . 86 . . . . . . . . . . . . . . . . . Slashing 327 | . . . . . . . . . . . . . . . . . . . . . . 327 Piercing . | . . . . . . . . . . . . . . . . . . . . . . . Highest Corruption 17 | . . . . . . 3 3 . 1 17 . 5 10 12 7 7 7 14 2 . . 13 Average Corruption 6 | . . . . . . 2 3 . 1 9 . 3 6 11 4 7 7 12 2 . . 8 Corruption Purged . | . . . . . . . . . . . . . . . . . . . . . . . Corruption Blocked . | . . . . . . . . . . . . . . . . . . . . . . . Effects 267 | . . . . . . 20 10 . 1 17 . 18 25 59 28 14 1 16 1 . . 57 Message Errors 60 | . . . . . . 6 4 . 1 2 . 4 7 14 5 3 . 3 . . . 11 Matter Fused 59 | . . . . . . 6 . . . 3 . 4 4 13 8 4 . 4 . . . 13 Heat Flow Errors 37 | . . . . . . 5 3 . . 2 . 3 . 5 4 2 1 2 . . . 10 Energy Discharges 18 | . . . . . . . . . . 2 . 2 3 4 1 1 . 1 . . . 4 Parts Rejected 6 | . . . . . . . . . . . . . 2 2 . . . . 1 . . 1 Parts Fused 1 | . . . . . . . . . . . . . 1 . . . . . . . . . Data Loss (minor) 21 | . . . . . . 1 1 . . 1 . 2 . 3 4 2 . . . . . 7 Data Loss (major) 15 | . . . . . . 1 1 . . 2 . 1 2 4 . . . 1 . . . 3 Misfires 13 | . . . . . . . . . . 3 . . 4 1 3 . . . . . . 2 Alerts 6 | . . . . . . 1 1 . . . . 2 . 1 . . . 1 . . . . Weapon Failures 31 | . . . . . . . . . . 2 . . 2 12 3 2 . 4 . . . 6 Overload Shots . | . . . . . . . . . . . . . . . . . . . . . . . Overflow Damage 219 | . . . . . 46 . . . 11 . . . . 34 . 20 . . . . . 108 Projectiles 20 | . . . . . . . . . . . . . . . . . . . . . . 20 Explosions 54 | . . . . . . . . . . . . . . 34 . 20 . . . . . . Melee 145 | . . . . . 46 . . . 11 . . . . . . . . . . . . 88 Knockbacks 16 | . . . . . 1 . . . . . . . . . . . . . . . . 15 Impact 3 | . . . . . 1 . . . . . . . . . . . . . . . . 2 Kinetic 13 | . . . . . . . . . . . . . . . . . . . . . . 13 Secondary . | . . . . . . . . . . . . . . . . . . . . . . . Self-Inflicted Damage 37 | . . . . . . . . . 16 21 . . . . . . . . . . . . Shots . | . . . . . . . . . . . . . . . . . . . . . . . Rammed 15 | . . . . . 2 . . 1 1 5 . . . . . . . . 1 . . 5 Targets Rammed 15 | . . . . . 2 . . 1 1 5 . . . . . . . . 1 . . 5 Kicked . | . . . . . . . . . . . . . . . . . . . . . . . Crushed . | . . . . . . . . . . . . . . . . . . . . . . . Highest Temperature 482 | . . . . 16 427 356 218 415 . 269 46 229 44 482 405 115 . 442 . . . 345 Average Temperature 103 | . . . . 12 105 87 83 138 . 41 34 41 27 126 131 61 . 165 . . . 164 Received Heat Transfer 4392 | . . . . 45 1134 141 90 . 8 484 . 165 119 473 133 640 . 132 27 . 126 675 Effects 22 | . . . . . 6 2 . . . . . . . 7 5 . . 1 . . . 1 Shutdowns 6 | . . . . . . . . . . . . . . 3 3 . . . . . . . Energy Bleed 2 | . . . . . 1 . . . . . . . . 1 . . . . . . . . Interference 5 | . . . . . 1 1 . . . . . . . . 2 . . 1 . . . . Short Circuit 3 | . . . . . . 1 . . . . . . . 1 . . . . . . . 1 Damage (minor) 1 | . . . . . 1 . . . . . . . . . . . . . . . . . Damage (major) 5 | . . . . . 3 . . . . . . . . 2 . . . . . . . . Siege Activations 43 | . . . . . . . . . . . . 3 4 7 4 3 . 1 5 . 5 11 Total Turns 741 | . . . . . . . . . . . . 48 47 111 88 72 . 22 32 . 69 252 Longest Duration 62 | . . . . . . . . . . . . 24 26 36 57 29 . 22 8 . 36 62 Martial Activations . | . . . . . . . . . . . . . . . . . . . . . . . Shielding Activations . | . . . . . . . . . . . . . . . . . . . . . . . Robots Disrupted . | . . . . . . . . . . . . . . . . . . . . . . . Combat Hostiles . | . . . . . . . . . . . . . . . . . . . . . . . Robots Corrupted 2 | . . . . . 1 . . . 1 . . . . . . . . . . . . . Combat Hostiles . | . . . . . . . . . . . . . . . . . . . . . . . Parts Fried 2 | . . . . . 2 . . . . . . . . . . . . . . . . . Impact Corruptions 4 | . . . . . 2 . . . 1 . . . . . . . . . . . . 1 Robots Melted . | . . . . . . . . . . . . . . . . . . . . . . . Combat Hostiles . | . . . . . . . . . . . . . . . . . . . . . . . Parts Melted 5 | . . . . . 1 . . . . . . . . . . . . 2 . . 2 . Heat Transferred 4367 | . . . . . 1517 . . . . . . . . . . . . 1700 900 . 250 . Parts Sabotaged 14 | . . . . . . . . . . . . . . 10 . . . . . . . 4 Parts Stolen . | . . . . . . . . . . . . . . . . . . . . . . . Parts Stripped . | . . . . . . . . . . . . . . . . . . . . . . . Power Chain Reactions . | . . . . . . . . . . . . . . . . . . . . . . . Alert | -11 -10 -10 -10 -9 -8 -8 -8 -7 -6 -5 -4 -4 -4 -4 -3 -3 -3 -3 -2 -1 -1 -1 ------- Run | Yrd Mat Min Exi Min Mat Gar Mat Fac Fac Fac Fac Gar Fac Arm Res Gar Res DSF Res Acc Gar Acc Maximum Alert Level 4 | . . . . . 2 4 3 1 . 1 . 3 2 3 3 3 2 2 1 . 3 4 Low Security (%) 29 | 100 100 100 . 100 59 . . 74 100 63 100 14 . . . . . . . 100 14 . Level 1 17 | . . . . . 19 10 . 25 . 36 . 26 37 23 7 . . . 100 . 32 . Level 2 33 | . . . . . 20 32 70 . . . . 35 62 67 67 13 100 100 . . 34 48 Level 3 14 | . . . . . . 20 29 . . . . 23 . 8 25 86 . . . . 18 40 Level 4 5 | . . . . . . 36 . . . . . . . . . . . . . . . 11 Level 5 . | . . . . . . . . . . . . . . . . . . . . . . . High Security . | . . . . . . . . . . . . . . . . . . . . . . . Max Security . | . . . . . . . . . . . . . . . . . . . . . . . Sterilizations 1 | . . . . . . . . . . . . . . . . . . 1 . . . . Peak Influence 1464 | 10 4 20 . 73 437 1464 735 308 8 324 142 902 593 826 890 1072 603 685 394 175 744 1374 Initial 713 | . . . . . 8 274 713 308 . . 142 53 473 275 360 663 603 441 384 175 124 446 Average 435 | 1 . 4 . 20 180 859 679 115 . 123 113 470 443 490 569 899 595 576 332 165 411 768 Influence Increases 10837 | 25 4 20 . 255 1149 1200 252 . 8 591 15 1089 542 1169 1038 509 5 294 237 . 620 1815 Destroy 0b10 Robot/C 6720 | . . 20 . 160 700 540 160 . . 380 . 640 280 900 720 360 . 260 100 . 460 1040 Destroy 0b10 Robot/NC 455 | 25 . . . 10 105 5 20 . 5 50 . . 50 15 70 . . . 25 . . 75 Destroy Leader 1154 | . . . . 30 178 30 54 . 2 74 . 50 76 176 128 40 . 30 56 . 40 190 Allied During Kill 174 | . . . . 17 . . . . . 2 . 86 69 . . . . . . . . . Successful Hack 126 | . 4 . . 23 22 58 . . . . . . 6 . . . 5 . 8 . . . Select Force Hacks 30 | . . . . . 30 . . . . . . . . . . . . . . . . . Disable Machine 330 | . . . . . 60 . . . . 45 15 . 45 15 30 . . . 15 . . 105 Anti-Garrison Action 800 | . . . . . . 500 . . . . . 250 . . . 50 . . . . . . Destroy Structure 598 | . . . . . 9 22 3 . 1 10 . 18 16 48 30 59 . 4 33 . 60 285 Partial Spotted 15 | . . . . . 15 . . . . . . . . . . . . . . . . . Lose Combat Pursuer 435 | . . . . 15 30 45 15 . . 30 . 45 . 15 60 . . . . . 60 120 Influence Decreases 9532 | 25 4 20 . 233 749 158 1037 679 8 300 229 264 881 1044 842 321 489 197 629 138 31 1254 Entered New Map 4087 | . . . . . 14 148 751 371 . . 149 24 429 288 328 221 469 147 301 118 31 298 Time Decay 4155 | 25 4 20 . 233 625 . 286 308 8 210 80 . 392 506 464 . 20 . 318 20 . 636 Lost Part 920 | . . . . . 110 10 . . . 90 . 60 40 80 50 100 . 50 10 . . 320 Lost Ally 220 | . . . . . . . . . . . . 180 20 20 . . . . . . . . Purge Threat 150 | . . . . . . . . . . . . . . 150 . . . . . . . . Squads Dispatched 62 | . 1 . . . 3 . 5 3 1 8 . . 6 4 13 . . 2 4 . . 12 Investigation 7 | . 1 . . . 1 . . 1 . 1 . . 1 . 2 . . . . . . . Extermination 19 | . . . . . . . . 2 1 1 . . 2 1 2 . . . 2 . . 8 Reinforcement 22 | . . . . . 1 . 4 . . 3 . . 3 3 4 . . 2 1 . . 1 Assault 10 | . . . . . 1 . 1 . . 2 . . . . 3 . . . . . . 3 Garrison 4 | . . . . . . . . . . 1 . . . . 2 . . . 1 . . . Intercept . | . . . . . . . . . . . . . . . . . . . . . . . Searches Triggered . | . . . . . . . . . . . . . . . . . . . . . . . Construction Impeded 4 | . . . . . . . . . . 2 . . . . 1 . . . . . . 1 Haulers Reinforced 3 | . . . . . . . . . . . . . 2 . 1 . . . . . . . Active Scanning Responses . | . . . . . . . . . . . . . . . . . . . . . . . Cargo Convoy Interrupts . | . . . . . . . . . . . . . . . . . . . . . . . Stealth | -11 -10 -10 -10 -9 -8 -8 -8 -7 -6 -5 -4 -4 -4 -4 -3 -3 -3 -3 -2 -1 -1 -1 --------- Run | Yrd Mat Min Exi Min Mat Gar Mat Fac Fac Fac Fac Gar Fac Arm Res Gar Res DSF Res Acc Gar Acc Distress Signals 13 | . . . . . 6 . 2 . . . . . . 1 2 . . . 2 . . . Communications Jammed . | . . . . . . . . . . . . . . . . . . . . . . . Distress Signals . | . . . . . . . . . . . . . . . . . . . . . . . Times Spotted 438 | . . 3 . 9 45 28 17 7 9 38 1 27 20 53 36 21 . 13 20 . 21 70 Peak Tracking Total 13 | . . 3 . 3 4 6 7 1 1 6 1 6 6 9 6 11 . 5 13 . 7 11 Tactical Retreats 17 | . . . . 1 2 1 1 . . 1 . 2 . 1 1 . . . . . 2 5 Traps | -11 -10 -10 -10 -9 -8 -8 -8 -7 -6 -5 -4 -4 -4 -4 -3 -3 -3 -3 -2 -1 -1 -1 ------- Run | Yrd Mat Min Exi Min Mat Gar Mat Fac Fac Fac Fac Gar Fac Arm Res Gar Res DSF Res Acc Gar Acc Traps Triggered 22 | . . . . . . 6 1 . 3 1 1 2 1 . 2 1 . 2 1 . 1 . Indirectly . | . . . . . . . . . . . . . . . . . . . . . . . Trap Hack Attempts . | . . . . . . . . . . . . . . . . . . . . . . . Triggered . | . . . . . . . . . . . . . . . . . . . . . . . Disarmed . | . . . . . . . . . . . . . . . . . . . . . . . Reprogrammed . | . . . . . . . . . . . . . . . . . . . . . . . Reused . | . . . . . . . . . . . . . . . . . . . . . . . Traps Extracted . | . . . . . . . . . . . . . . . . . . . . . . . Installed . | . . . . . . . . . . . . . . . . . . . . . . . Triggered . | . . . . . . . . . . . . . . . . . . . . . . . Machines | -11 -10 -10 -10 -9 -8 -8 -8 -7 -6 -5 -4 -4 -4 -4 -3 -3 -3 -3 -2 -1 -1 -1 ---------- Run | Yrd Mat Min Exi Min Mat Gar Mat Fac Fac Fac Fac Gar Fac Arm Res Gar Res DSF Res Acc Gar Acc Machines Disabled 31 | . . . . . 4 4 . . . 3 1 3 4 1 2 1 . . 1 . . 7 Max in Single Turn 1 | . . . . . 1 1 . . . 1 1 1 1 1 1 1 . . 1 . . 1 Garrison Access 2 | . . . . . . . . . . 1 . . . . 1 . . . . . . . Garrison Relay 7 | . . . . . . 3 . . . . . 3 . . . 1 . . . . . . Machines Repaired . | . . . . . . . . . . . . . . . . . . . . . . . Machines Dismantled . | . . . . . . . . . . . . . . . . . . . . . . . Machines Sabotaged . | . . . . . . . . . . . . . . . . . . . . . . . Overloaded Fab Kills . | . . . . . . . . . . . . . . . . . . . . . . . Hacking | -11 -10 -10 -10 -9 -8 -8 -8 -7 -6 -5 -4 -4 -4 -4 -3 -3 -3 -3 -2 -1 -1 -1 --------- Run | Yrd Mat Min Exi Min Mat Gar Mat Fac Fac Fac Fac Gar Fac Arm Res Gar Res DSF Res Acc Gar Acc Machines Accessed 40 | . 2 . 2 1 10 4 . 1 2 1 2 . 3 2 6 . 1 . 2 1 . . Terminals 26 | . 2 . . 1 7 4 . 1 1 . . . 2 1 4 . 1 . 2 . . . Fabricators 4 | . . . . . . . . . 1 . . . 1 1 1 . . . . . . . Repair Stations . | . . . . . . . . . . . . . . . . . . . . . . . Recycling Units 3 | . . . . . 1 . . . . 1 1 . . . . . . . . . . . Scanalyzers 1 | . . . . . 1 . . . . . . . . . . . . . . . . . Garrison Access 4 | . . . . . 1 . . . . . 1 . . . 1 . . . . 1 . . Total Hacks 85 | . 6 . 2 6 27 6 . 3 2 1 2 . 9 3 12 . 1 . 4 1 . . Successful 46 | . 4 . 2 4 17 4 . . 2 1 1 . 3 1 2 . 1 . 3 1 . . Failed 39 | . 2 . . 2 10 2 . 3 . . 1 . 6 2 10 . . . 1 . . . Catastrophic 5 | . . . . . . 1 . . . . . . . 2 2 . . . . . . . Database Lockouts . | . . . . . . . . . . . . . . . . . . . . . . . Manual 49 | . 6 . 1 5 18 . . 3 . . . . 6 2 4 . . . 4 . . . Terminals 63 | . 6 . . 6 20 6 . 3 1 . . . 6 2 8 . 1 . 4 . . . Fabricators 6 | . . . . . . . . . 1 . . . 3 1 1 . . . . . . . Repair Stations . | . . . . . . . . . . . . . . . . . . . . . . . Recycling Units 4 | . . . . . 2 . . . . 1 1 . . . . . . . . . . . Scanalyzers 4 | . . . . . 4 . . . . . . . . . . . . . . . . . Garrison Access 6 | . . . . . 1 . . . . . 1 . . . 3 . . . . 1 . . Terminal Hacks 15 | . . . 2 4 . 4 . . 1 . . . 1 1 . . 1 . 1 . . . Record 1 | . . . 1 . . . . . . . . . . . . . . . . . . . Robot Analysis 3 | . . . . 3 . . . . . . . . . . . . . . . . . . Open Door 1 | . . . . . . . . . 1 . . . . . . . . . . . . . Open DSF 1 | . . . . . . . . . . . . . . . . . 1 . . . . . Level Access Points 1 | . . . . . . . . . . . . . . . . . . . 1 . . . Emergency Access Points 1 | . . . . . . 1 . . . . . . . . . . . . . . . . Unreport Threat 1 | . . . . . . . . . . . . . . 1 . . . . . . . . Zone Layout 2 | . . . . 1 . . . . . . . . 1 . . . . . . . . . Garrison Registry 1 | . . . . . . 1 . . . . . . . . . . . . . . . . Patrol Navigation 1 | . . . . . . 1 . . . . . . . . . . . . . . . . Security Stations 1 | . . . . . . 1 . . . . . . . . . . . . . . . . Proto ID Catalog 1 | . . . 1 . . . . . . . . . . . . . . . . . . . Fabricator Hacks 3 | . . . . . . . . . 1 . . . 1 . 1 . . . . . . . Network Status 3 | . . . . . . . . . 1 . . . 1 . 1 . . . . . . . Repair Station Hacks . | . . . . . . . . . . . . . . . . . . . . . . . Recycling Unit Hacks 2 | . . . . . 1 . . . . 1 . . . . . . . . . . . . Retrieve Components 2 | . . . . . 1 . . . . 1 . . . . . . . . . . . . Scanalyzer 4 | . . . . . 4 . . . . . . . . . . . . . . . . . Retrieve Study 4 | . . . . . 4 . . . . . . . . . . . . . . . . . Garrison Access Hacks 4 | . . . . . 1 . . . . . 1 . . . 1 . . . . 1 . . Unlock Access 4 | . . . . . 1 . . . . . 1 . . . 1 . . . . 1 . . Unauthorized Hacks 18 | . 4 . . . 11 . . . . . . . 1 . . . . . 2 . . . Terminals 17 | . 4 . . . 10 . . . . . . . 1 . . . . . 2 . . . Assimilate 1 | . . . . . . . . . . . . . 1 . . . . . . . . . Botnet 8 | . 2 . . . 4 . . . . . . . . . . . . . 2 . . . Skim 8 | . 2 . . . 6 . . . . . . . . . . . . . . . . . Fabricators . | . . . . . . . . . . . . . . . . . . . . . . . Repair Stations . | . . . . . . . . . . . . . . . . . . . . . . . Recycling Units 1 | . . . . . 1 . . . . . . . . . . . . . . . . . Tunnel 1 | . . . . . 1 . . . . . . . . . . . . . . . . . Scanalyzers . | . . . . . . . . . . . . . . . . . . . . . . . Garrison Access . | . . . . . . . . . . . . . . . . . . . . . . . Data Cores Recovered 1 | . . . . . 1 . . . . . . . . . . . . . . . . . Used . | . . . . . . . . . . . . . . . . . . . . . . . Hacking Detections 29 | . 2 . . 1 6 3 . 1 1 . 2 . 2 2 6 . . . 2 1 . . Full Trace Events 5 | . . . . . . 1 . 1 . . . . 1 . 2 . . . . . . . Feedback Events . | . . . . . . . . . . . . . . . . . . . . . . . Feedback Blocked . | . . . . . . . . . . . . . . . . . . . . . . . Robot Schematics Acquired . | . . . . . . . . . . . . . . . . . . . . . . . Robots Built . | . . . . . . . . . . . . . . . . . . . . . . . Authchips . | . . . . . . . . . . . . . . . . . . . . . . . Time . | . . . . . . . . . . . . . . . . . . . . . . . Total Robot Build Rating . | . . . . . . . . . . . . . . . . . . . . . . . Part Schematics Acquired . | . . . . . . . . . . . . . . . . . . . . . . . Parts Built . | . . . . . . . . . . . . . . . . . . . . . . . Authchips . | . . . . . . . . . . . . . . . . . . . . . . . Time . | . . . . . . . . . . . . . . . . . . . . . . . Total Part Build Rating . | . . . . . . . . . . . . . . . . . . . . . . . Part Studies Acquired 4 | . . . . . 4 . . . . . . . . . . . . . . . . . Parts Repaired . | . . . . . . . . . . . . . . . . . . . . . . . Time . | . . . . . . . . . . . . . . . . . . . . . . . Parts Recycled . | . . . . . . . . . . . . . . . . . . . . . . . Recycled Matter . | . . . . . . . . . . . . . . . . . . . . . . . Retrieved Matter . | . . . . . . . . . . . . . . . . . . . . . . . Retrieved Components 12 | . . . . . 9 . . . . 3 . . . . . . . . . . . . Parts Scanalyzed . | . . . . . . . . . . . . . . . . . . . . . . . Part Schematics Acquired . | . . . . . . . . . . . . . . . . . . . . . . . Parts Damaged . | . . . . . . . . . . . . . . . . . . . . . . . Bothacking | -11 -10 -10 -10 -9 -8 -8 -8 -7 -6 -5 -4 -4 -4 -4 -3 -3 -3 -3 -2 -1 -1 -1 ------------ Run | Yrd Mat Min Exi Min Mat Gar Mat Fac Fac Fac Fac Gar Fac Arm Res Gar Res DSF Res Acc Gar Acc Used RIF Installer 2 | . . . . . . 1 . . . . . 1 . . . . . . . . . . Coupler Efficiency 1 | . . . . . . . . . . . . 1 . . . . . . . . . . Robots Hacked 15 | . . . . . . . 1 . . 2 . 3 6 3 . . . . . . . . Non-combat 2 | . . . . . . . . . . . . . 2 . . . . . . . . . Combat 13 | . . . . . . . 1 . . 2 . 3 4 3 . . . . . . . . Robot Hacks Applied 16 | . . . . . . . 1 . . 2 . 3 7 3 . . . . . . . . parse_system 2 | . . . . . . . 1 . . . . . 1 . . . . . . . . . generate_anomaly 1 | . . . . . . . . . . . . . 1 . . . . . . . . . locate_traps 1 | . . . . . . . . . . . . . 1 . . . . . . . . . overload_power 1 | . . . . . . . . . . . . 1 . . . . . . . . . . amplify_resonance 1 | . . . . . . . . . . 1 . . . . . . . . . . . . disable_weapons 2 | . . . . . . . . . . . . . 1 1 . . . . . . . . go_dormant 1 | . . . . . . . . . . . . . . 1 . . . . . . . . overwrite_iff 4 | . . . . . . . . . . 1 . 1 1 1 . . . . . . . . formatsys_high 2 | . . . . . . . . . . . . . 2 . . . . . . . . . formatsys_deep 1 | . . . . . . . . . . . . 1 . . . . . . . . . . Relay Couplers Released 36 | . . . . . . 10 . . . 3 . 14 . . 4 5 . . . . . . Machine Destruction 36 | . . . . . . 10 . . . 3 . 14 . . 4 5 . . . . . . Attached 7 | . . . . . . . . . . 2 . 2 2 . 1 . . . . . . . Fabnet Peak Effective % . | . . . . . . . . . . . . . . . . . . . . . . . Robots Rewired 4 | . . . . . . . . . . . . 4 . . . . . . . . . . Allies Hacked . | . . . . . . . . . . . . . . . . . . . . . . . Hacks Repelled . | . . . . . . . . . . . . . . . . . . . . . . . Allies | -11 -10 -10 -10 -9 -8 -8 -8 -7 -6 -5 -4 -4 -4 -4 -3 -3 -3 -3 -2 -1 -1 -1 -------- Run | Yrd Mat Min Exi Min Mat Gar Mat Fac Fac Fac Fac Gar Fac Arm Res Gar Res DSF Res Acc Gar Acc Total Allies 20 | . . . . 2 . . . . . 1 . 13 3 1 . . . . . . . . Largest Group 8 | . . . . 2 . . . . . 1 . 8 3 1 . . . . . . . . Highest-Rated Group 232 | . . . . 49 . . . . . 36 . 232 169 64 . . . . . . . . Highest-Rated Ally 64 | . . . . 31 . . . . . 36 . 47 64 64 . . . . . . . . Total Orders 4 | . . . . . . . . . . . . 3 1 . . . . . . . . . STAY 3 | . . . . . . . . . . . . 2 1 . . . . . . . . . AID 1 | . . . . . . . . . . . . 1 . . . . . . . . . . Ally Attacks 151 | . . . . 11 . . . . . 3 . 104 29 4 . . . . . . . . Total Damage 2923 | . . . . 146 . . . . . 120 . 1434 1001 222 . . . . . . . . Kills 18 | . . . . 2 . . . . . 2 . 9 5 . . . . . . . . . Allies Corrupted . | . . . . . . . . . . . . . . . . . . . . . . . Allies Melted 1 | . . . . . . . . . . . . . . 1 . . . . . . . . Intel | -11 -10 -10 -10 -9 -8 -8 -8 -7 -6 -5 -4 -4 -4 -4 -3 -3 -3 -3 -2 -1 -1 -1 ------- Run | Yrd Mat Min Exi Min Mat Gar Mat Fac Fac Fac Fac Gar Fac Arm Res Gar Res DSF Res Acc Gar Acc Active Infowar (turns) 3433 | 30 100 58 425 1013 1802 . . . . . . . . . . . . 5 . . . . Optics 279 | . . . . . 279 . . . . . . . . . . . . . . . . . IFF 1 | . . . . . . . . . . . . . . . . . . 1 . . . . Seismic 3296 | 30 100 58 425 1013 1670 . . . . . . . . . . . . . . . . . ECM 4 | . . . . . . . . . . . . . . . . . . 4 . . . . Robot Analysis Total 3 | . . . . 3 . . . . . . . . . . . . . . . . . . Derelict Logs Recovered 1 | . . . . 1 . . . . . . . . . . . . . . . . . . Drone Launches . | . . . . . . . . . . . . . . . . . . . . . . . Drone Recoveries . | . . . . . . . . . . . . . . . . . . . . . . . Exploration | -11 -10 -10 -10 -9 -8 -8 -8 -7 -6 -5 -4 -4 -4 -4 -3 -3 -3 -3 -2 -1 -1 -1 ------------- Run | Yrd Mat Min Exi Min Mat Gar Mat Fac Fac Fac Fac Gar Fac Arm Res Gar Res DSF Res Acc Gar Acc Turns Passed 19049 | 129 100 58 425 1013 3109 2130 623 877 753 708 172 1392 923 1364 1161 395 47 275 702 58 376 2259 Spaces Moved 8297 | 50 57 33 265 521 1316 869 236 495 438 276 87 519 398 539 436 130 21 72 337 35 126 1041 Core 85 | 4 . . . . . . . . . . . . . . . . . . . . . 81 Treads 6609 | 46 57 33 265 521 1279 869 179 . . 18 . 288 398 539 436 130 21 72 337 35 126 960 Legs 37 | . . . . . 37 . . . . . . . . . . . . . . . . . Wheels 1566 | . . . . . . . 57 495 438 258 87 231 . . . . . . . . . . Hover . | . . . . . . . . . . . . . . . . . . . . . . . Flight . | . . . . . . . . . . . . . . . . . . . . . . . Fastest Speed 50 | 50 160 160 160 160 160 200 165 120 120 135 175 163 160 145 145 145 232 152 155 158 158 50 Average Speed 168 | 151 160 160 160 176 181 200 192 131 132 166 186 179 164 154 181 166 232 203 158 158 158 152 Slowest Speed 410 | 160 160 160 160 240 330 200 200 135 135 410 190 246 240 160 225 232 232 240 160 158 158 250 Overloaded Moves . | . . . . . . . . . . . . . . . . . . . . . . . Propulsion Burnouts . | . . . . . . . . . . . . . . . . . . . . . . . Robots Hopped . | . . . . . . . . . . . . . . . . . . . . . . . Potential Cave-ins . | . . . . . . . . . . . . . . . . . . . . . . . Cave-ins Triggered 1 | . . . . . . . . . . . . . . . . . . . . . . 1 Exploration Rate (%) 29 | 3 13 11 61 92 84 74 31 13 13 11 3 42 13 39 17 35 2 61 13 3 25 24 Regions Visited 22 Branch Regions 4 Pre-discovered Areas 3 | . . . 1 . 2 . . . . . . . . . . . . . . . . . Known Exits Taken 7 | . . . . . 1 . . 1 . . 1 . . . 1 . 1 . 1 1 . . Unknown Exits Taken 10 | 1 1 1 1 1 . . 1 . 1 1 . . 1 1 . . . . . . . . Scrap Searched 2 | . . . . 2 . . . . . . . . . . . . . . . . . . Spaces Dug 74 | . . . . . 3 12 2 . . . . 2 . . 4 1 . . 5 . . 45 Terrain Destroyed 263 | . . . . . 3 12 2 . 1 . . 15 18 26 15 45 . 5 8 . 12 101 Melee 25 | . . . . . 3 12 2 . . . . 2 . . 2 1 . . . . . 3 Projectile 118 | . . . . . . . . . 1 . . 6 16 2 3 6 . 3 8 . 4 69 AOE 85 | . . . . . . . . . . . . 4 . 13 . 37 . . . . 5 26 Terrain Rammed . | . . . . . . . . . . . . . . . . . . . . . . . Walls Destroyed . | . . . . . . . . . . . . . . . . . . . . . . . Machines Disabled . | . . . . . . . . . . . . . . . . . . . . . . . Actions | -11 -10 -10 -10 -9 -8 -8 -8 -7 -6 -5 -4 -4 -4 -4 -3 -3 -3 -3 -2 -1 -1 -1 --------- Run | Yrd Mat Min Exi Min Mat Gar Mat Fac Fac Fac Fac Gar Fac Arm Res Gar Res DSF Res Acc Gar Acc Total 11650 | 75 66 35 266 585 1765 1108 367 715 592 415 94 847 554 890 616 246 20 132 471 37 246 1508 Wait 1760 | . 10 1 . 38 216 88 94 197 136 26 . 180 47 180 58 58 . 17 89 . 64 261 Move 8276 | 49 56 32 264 520 1315 867 235 494 437 275 87 518 397 538 436 129 20 71 336 35 125 1040 Hop . | . . . . . . . . . . . . . . . . . . . . . . . Pick Up 111 | 5 . . 1 5 17 12 1 4 1 4 1 7 8 12 7 6 . 1 4 . . 15 Fast Attach 145 | 7 . . . . 20 2 5 5 4 12 2 14 13 16 8 5 . 8 5 . 5 14 Attach 100 | . . . . . 8 2 . 2 2 8 1 10 4 18 14 9 . 4 4 1 3 10 Detach 37 | . . . . . . 1 . . . 3 . 2 5 4 8 5 . 2 1 . 4 2 Swap 158 | . . . 1 1 15 22 8 3 . 10 1 14 15 23 10 2 . . 7 1 8 17 Drop 178 | . . . . 3 24 19 6 6 4 9 1 20 17 25 7 2 . 4 5 . 4 22 Fire 788 | 14 . 2 . 18 144 57 16 3 7 55 1 69 48 74 66 26 . 25 19 . 33 111 Melee 53 | . . . . . 4 28 2 . . . . 4 . . 2 2 . . . . . 11 Ram 6 | . . . . . . . . . 1 5 . . . . . . . . . . . . Kick . | . . . . . . . . . . . . . . . . . . . . . . . Crush 9 | . . . . . 2 . . 1 . . . . . . . . . . 1 . . 5 Escape Stasis 28 | . . . . . . 10 . . . 8 . 8 . . . 2 . . . . . . Rewire 1 | . . . . . . . . . . . . 1 . . . . . . . . . . Trap . | . . . . . . . . . . . . . . . . . . . . . . . Miscellaneous . | . . . . . . . . . . . . . . . . . . . . . . . Route ------- -11/Scrapyard -10/Materials -10/Mines -10/Exiles -9/Mines -8/Materials (discovered 4 exits: *Fac x3 / Gar) -8/Garrison (discovered 3 exits: [*Mat x3]) -8/Materials -7/Factory (discovered 6 exits: *Fac x3 / Sto / Low x2) -6/Factory (discovered 4 exits: *Fac / Low x2 / [*Ext]) -5/Factory -4/Factory -4/Garrison -4/Factory (discovered 2 exits: *Res / *Arm) -4/Armory -3/Research -3/Garrison -3/Research -3/DSF -2/Research (discovered 3 exits: *Acc x3) -1/Access -1/Garrison -1/Access To Epsilon Eridani History --------- Turn | Location | Event 12 | -11/Scrapyard | Discovered new exit (range 15) 130 | -11/Scrapyard | Entered Materials 143 | -10/Materials | Discovered new exit (range 16) 194 | -10/Materials | Met 8R-AWN 230 | -10/Materials | Entered Mines 231 | -10/Mines | Followed 8R-AWN into the Mines 282 | -10/Mines | Discovered new exit (range 5) 288 | -10/Mines | Entered Exiles 302 | -10/Exiles | Build established: Mutant 328 | -10/Exiles | Welcomed by 8R-AWN 354 | -10/Exiles | Met EX-HEX 400 | -10/Exiles | Met EX-BIN 420 | -10/Exiles | Aligned with FarCom system 421 | -10/Exiles | Given EX-Vault access code 460 | -10/Exiles | Opened EX-Vault 485 | -10/Exiles | Found AWS/Gauss 520 | -10/Exiles | Warned to stay clear of 0b10 Research branches 568 | -10/Exiles | Met EX-DEC 581 | -10/Exiles | Learned location of Zion (-6) 629 | -10/Exiles | Discovered new exit (range 10) 713 | -10/Exiles | Left Exiles lab with AWS/Gauss 713 | -10/Exiles | Entered Mines 1022 | -9/Mines | Found a Scrap Suit stashed away for nefarious purposes 1164 | -9/Mines | Learned Materials stockpile data 1210 | -9/Mines | Found a damaged Exp. Sensor Array with a note attached 1213 | -9/Mines | Found Prototype Device 1580 | -9/Mines | Discovered new exit (range 10) 1726 | -9/Mines | Entered Materials 1726 | -8/Materials | Evolved 4 slots: Propulsion x1, Utility x1, Weapon x2 1946 | -8/Materials | Lost 5 parts (1n1u3w) 2467 | -8/Materials | Build established: Scavenger-Skirmisher 3299 | -8/Materials | Discovered new exit (range 15) 3799 | -8/Materials | Discovered new exit (range 9) 4376 | -8/Materials | Discovered new exit (range 3) 4402 | -8/Materials | Learned Factory recycling unit intel 4452 | -8/Materials | Learned Storage trap positions 4523 | -8/Materials | Learned Factory stockpile data 4526 | -8/Materials | First assault squad dispatched 4543 | -8/Materials | Learned location of 2 exits from Factory 4646 | -8/Materials | Learned location of 1 exit from Storage 4828 | -8/Materials | Identified exit to Garrison 4835 | -8/Materials | Entered Garrison 4906 | -8/Garrison | Triggered checkpoint 5100 | -8/Garrison | Garrison Relay disabled 5175 | -8/Garrison | Garrison Relay disabled 5211 | -8/Garrison | Build established: Scavenger-Tank 5427 | -8/Garrison | Triggered checkpoint 5633 | -8/Garrison | Triggered checkpoint 5749 | -8/Garrison | Learned Materials security intel 5767 | -8/Garrison | Garrison Relay disabled 5846 | -8/Garrison | Discovered new exit (range 11) 6077 | -8/Garrison | Triggered checkpoint 6215 | -8/Garrison | Discovered new exit (range 13) 6279 | -8/Garrison | Triggered checkpoint 6309 | -8/Garrison | Discovered new exit (range 49) 6309 | -8/Garrison | Discovered new exit (range 10) 6309 | -8/Garrison | Discovered new exit (range 55) 6415 | -8/Garrison | Triggered checkpoint 6624 | -8/Garrison | Installed Relay Interface Framework 6767 | -8/Garrison | Build established: Scavenger-Skirmisher 6965 | -8/Garrison | Entered Materials 7272 | -8/Materials | Met 7R-MNS 7365 | -8/Materials | First assault squad dispatched 7423 | -8/Materials | Core integrity fell below 50% 7527 | -8/Materials | Discovered new exit (range 15) 7588 | -8/Materials | Entered Factory 7588 | -7/Factory | Evolved 2 slots: Propulsion x1, Utility x1 7589 | -7/Factory | Caught up to 7R-MNS 7589 | -7/Factory | Identified exit to Storage 7589 | -7/Factory | Identified exit to Lower Caves 7590 | -7/Factory | Identified exit to Factory 7592 | -7/Factory | Loaded intel: 6 recycling unit locations 7759 | -7/Factory | Discovered exit to Factory (range 15) 7857 | -7/Factory | Build established: Scavenger-Tank 8465 | -7/Factory | Entered another Factory area 8465 | -6/Factory | Evolved 2 slots: Utility x2 8466 | -6/Factory | Caught up to 7R-MNS 8466 | -6/Factory | Identified exit to Lower Caves 8759 | -6/Factory | Build established: Scavenger-Gunner 8875 | -6/Factory | Discovered new exit (range 6) 9186 | -6/Factory | Discovered new exit (range 16) 9218 | -6/Factory | Entered another Factory area 9218 | -5/Factory | Evolved 2 slots: Utility x2 9219 | -5/Factory | Caught up to 7R-MNS 9546 | -5/Factory | Garrison activated, responded to threat 9642 | -5/Factory | 7R-MNS lamented failing the tripod run 9694 | -5/Factory | System corruption reached 10% 9740 | -5/Factory | Destroyed 8 combat bots 9772 | -5/Factory | Lost 6 parts (1p1n1u3w) 9887 | -5/Factory | Discovered new exit (range 10) 9926 | -5/Factory | Entered another Factory area 9926 | -4/Factory | Evolved 2 slots: Weapon x2 10098 | -4/Factory | Identified exit to Garrison 10098 | -4/Factory | Entered Garrison 10111 | -4/Garrison | Triggered checkpoint 10188 | -4/Garrison | Build established: Scavenger-Executioner 10201 | -4/Garrison | Garrison Relay disabled 10285 | -4/Garrison | Triggered checkpoint 10322 | -4/Garrison | Triggered checkpoint 10324 | -4/Garrison | Assimilated Heavy ARC 7a with formatsys_deep 10429 | -4/Garrison | Garrison Relay disabled 10618 | -4/Garrison | Triggered checkpoint 10621 | -4/Garrison | Lost 5 allies 10676 | -4/Garrison | Triggered checkpoint 10721 | -4/Garrison | Lost 3 allies 10724 | -4/Garrison | Spotted B-86 Titan 10761 | -4/Garrison | Destroyed B-86 Titan 11175 | -4/Garrison | Discovered new exit (range 13) 11206 | -4/Garrison | Rescued a captive Derelict 11209 | -4/Garrison | Rescued a captive Derelict 11404 | -4/Garrison | Expanded RIF knowledge: Coupler Efficiency 11446 | -4/Garrison | Garrison Relay disabled 11490 | -4/Garrison | Entered Factory 11657 | -4/Factory | Found Prototype Processor 11657 | -4/Factory | Identified Exp. Melee Analysis Suite 11925 | -4/Factory | Spotted B-86 Titan 11944 | -4/Factory | Destroyed B-86 Titan 11970 | -4/Factory | Lost 3 parts (1n2u) 12054 | -4/Factory | Discovered new exit (range 6) 12196 | -4/Factory | Discovered new exit (range 11) 12254 | -4/Factory | System corruption reached 10% 12413 | -4/Factory | Entered Armory 12764 | -4/Armory | Destroyed 9 combat bots 13189 | -4/Armory | Build established: Executioner 13298 | -4/Armory | Found Prototype Processor 13298 | -4/Armory | Identified Exp. Signal Interpreter 13303 | -4/Armory | Found Prototype Processor 13303 | -4/Armory | Identified Exp. Terrain Scan Processor 13587 | -4/Armory | Lost 5 parts (4u1w) 13773 | -4/Armory | Discovered new exit (range 3) 13777 | -4/Armory | Entered Research 13777 | -3/Research | Evolved 2 slots: Power x1, Utility x1 13857 | -3/Research | Garrison activated, responded to threat 14027 | -3/Research | First assault squad dispatched 14677 | -3/Research | Destroyed 7 combat bots 14748 | -3/Research | Found Prototype Launcher 14750 | -3/Research | Identified Smartbomb Launcher 14938 | -3/Research | Identified exit to Garrison 14938 | -3/Research | Entered Garrison 15026 | -3/Garrison | Garrison Relay disabled 15073 | -3/Garrison | Spotted B-86 Titan 15086 | -3/Garrison | Destroyed B-86 Titan 15096 | -3/Garrison | Triggered checkpoint 15178 | -3/Garrison | Lost 9 parts (1p1n2u5w) 15220 | -3/Garrison | Triggered checkpoint 15226 | -3/Garrison | Destroyed 14 combat bots 15244 | -3/Garrison | Found Unknown Protection 15315 | -3/Garrison | Discovered new exit (range 9) 15333 | -3/Garrison | Entered Research 15378 | -3/Research | Identified exit to DSF 15380 | -3/Research | Entered DSF 15426 | -3/DSF | Additional patrols routed to DSF 15463 | -3/DSF | System corruption reached 10% 15528 | -3/DSF | Destroyed 7 combat bots 15535 | -3/DSF | Build established: Scavenger-Executioner 15568 | -3/DSF | Sterilization system engaged 15588 | -3/DSF | Ambient heat levels rising (+10) 15592 | -3/DSF | Found Adv. Powered Armor 15595 | -3/DSF | Found Adv. Powered Armor 15599 | -3/DSF | Identified Hvy. Reflective Plating 15601 | -3/DSF | Lost 3 parts (2u1w) 15603 | -3/DSF | Ambient heat levels rising (+10) 15618 | -3/DSF | Ambient heat levels rising (+10) 15619 | -3/DSF | Discovered new exit (range 16) 15633 | -3/DSF | Ambient heat levels rising (+10) 15648 | -3/DSF | Ambient heat levels rising (+10) 15655 | -3/DSF | Entered Research 15655 | -2/Research | Evolved 2 slots: Propulsion x2 15895 | -2/Research | Garrison activated, responded to threat 16254 | -2/Research | Identified exit to Access 16357 | -2/Research | Entered Access 16357 | -1/Access | Evolved 2 slots: Utility x2 16415 | -1/Access | Identified exit to Garrison 16415 | -1/Access | Entered Garrison 16501 | -1/Garrison | Triggered checkpoint 16538 | -1/Garrison | Triggered checkpoint 16564 | -1/Garrison | Spotted B-99 Colossus 16592 | -1/Garrison | Destroyed B-99 Colossus 16626 | -1/Garrison | Found Prototype Ballistic Gun 16626 | -1/Garrison | Identified Multirail 16631 | -1/Garrison | Found Multirail 16712 | -1/Garrison | Triggered checkpoint 16744 | -1/Garrison | Destroyed 7 combat bots 16777 | -1/Garrison | Discovered new exit (range 10) 16791 | -1/Garrison | Entered Access 16880 | -1/Access | Found Prototype Hackware 17341 | -1/Access | Spotted B-99 Colossus 17342 | -1/Access | AWS/Gauss suddenly broke down 17364 | -1/Access | Destroyed B-99 Colossus 17391 | -1/Access | Found Multirail 17937 | -1/Access | Destroyed 10 combat bots 17969 | -1/Access | Spotted B-99 Colossus 17979 | -1/Access | Spotted B-99 Colossus 17990 | -1/Access | Destroyed B-99 Colossus 18029 | -1/Access | System corruption reached 10% 18041 | -1/Access | First assault squad dispatched 18052 | -1/Access | Destroyed B-99 Colossus 18078 | -1/Access | Lost 6 parts (1p3u2w) 18246 | -1/Access | Crushed by falling debris 18973 | -1/Access | Released all parts (6) 18987 | -1/Access | Destroyed 7 combat bots 19004 | -1/Access | Lost 23 parts (1p3n11u8w) 19042 | -1/Access | Core integrity fell below 50% 19046 | -1/Access | Discovered new exit (range 5) 19050 | *** | Escaped! Last Messages --------------- 18973_ Biometal Medium Treads crushed and broken. 18973_ Dropped Com. Mass Driver. 18973_ Com. Mass Driver crushed and broken. 18973_ Acquired Enh. Nova Cannon. 18975_ Dropped Prototype Treads. 18976_ Acquired Rnf. Quantum Reactor. 18979_ Acquired 6 matter. 18981_ Acquired 1 matter. 18982_ HEKU##U XUBN|XSBXE%=>3 QR36I